Workbook

Sheet Tabelle4
A1: SLA_1_1 | B1: SLA_1_1 | C1: SLA_1_2 | D1: SLA_1_2 | E1: SLA_1_3 | F1: SLA_1_3 | G1: SLA_1_4 | H1: SLA_1_4 | I1: SLA_1_5 | J1: SLA_1_5 | K1: SLA_1_6 | L1: SLA_1_6 | M1: SLA_1_7 | N1: SLA_1_7 | O1: Mittelwert 25°C
A2: Dehnung | B2: Standardkraft | C2: Dehnung | D2: Standardkraft | E2: Dehnung | F2: Standardkraft | G2: Dehnung | H2: Standardkraft | I2: Dehnung | J2: Standardkraft | K2: Dehnung | L2: Standardkraft | M2: Dehnung | N2: Standardkraft | O2: Dehnung | P2: Standardkraft
A3: % | B3: N/mm² | C3: % | D3: N/mm² | E3: % | F3: N/mm² | G3: % | H3: N/mm² | I3: % | J3: N/mm² | K3: % | L3: N/mm² | M3: % | N3: N/mm² | O3: % | P3: N/mm²
A4: 0 | B4: 0.101873979 | C4: 0 | D4: 0.1188323977 | E4: 0 | F4: 0.1063718177 | G4: 0 | H4: 0.076828934 | I4: 0 | J4: 0.1196526059 | K4: 0 | L4: 0.1261845353 | M4: 0 | N4: 0.1407581763 | O4: 0 | P4: 0.1118083067
A5: -0.001441798619 | B5: 0.1041678699 | C5: 0.002323462201 | D5: 0.116638002 | E5: 0.00213993267 | F5: 0.1050772517 | G5: -0.004858537577 | H5: 0.07614180184 | I5: -0.00247024834 | J5: 0.1169171642 | K5: 0.007316174451 | L5: 0.1235001314 | M5: 0.0002741312104 | N5: 0.1402782324 | O5: =AVERAGE(A5,C5,E5,G5,I5,K5,M5) -> 0.0004690165709 | P5: =AVERAGE(B5,D5,F5,H5,J5,L5,N5) -> 0.1118172076
A6: 0.003053716112 | B6: 0.1022439573 | C6: -0.01152346997 | D6: 0.1162424628 | E6: 0.02548335431 | F6: 0.1062421136 | G6: -0.003696622249 | H6: 0.07659949583 | I6: -0.001531666203 | J6: 0.114853394 | K6: 0.0349354744 | L6: 0.1239824714 | M6: -0.007815652837 | N6: 0.1392337666 | O6: =AVERAGE(A6,C6,E6,G6,I6,K6,M6) -> 0.005557876222 | P6: 0.1113425231
A7: 0.01161829956 | B7: 0.1029493182 | C7: -0.0002339855079 | D7: 0.1156231028 | E7: 0.01153509831 | F7: 0.1329698383 | G7: -0.005434514411 | H7: 0.07699179981 | I7: 0.004339628698 | J7: 0.1144349431 | K7: 0.01072986439 | L7: 0.1249518985 | M7: -0.005254490534 | N7: 0.1400876744 | O7: 0.003899985788 | P7: 0.1154297964
A8: 0.005128217163 | B8: 0.1177545575 | C8: 0.0002645261945 | D8: 0.127786437 | E8: -0.001191751508 | F8: 0.1682334657 | G8: -0.002052516599 | H8: 0.1019613173 | I8: -0.009051351808 | J8: 0.13101165 | K8: 0.01981507366 | L8: 0.1410821114 | M8: 0.004108691355 | N8: 0.1572908893 | O8: 0.002431555494 | P8: 0.135017204
A9: 0.008566828134 | B9: 0.1394522157 | C9: 0.0008983058312 | D9: 0.1463671739 | E9: -0.009374876972 | F9: 0.2382940469 | G9: -0.00576393446 | H9: 0.1268547676 | I9: -0.007315000209 | J9: 0.1453569826 | K9: 0.02083976132 | L9: 0.1546160607 | M9: -0.007062836085 | N9: 0.1879982424 | O9: 0.0001126067946 | P9: 0.1627056414
A10: 0.01113561137 | B10: 0.1780389471 | C10: -0.002325468425 | D10: 0.1607805578 | E10: -0.006132378476 | F10: 0.2790995958 | G10: 0.002625440829 | H10: 0.175026079 | I10: -0.003743783648 | J10: 0.1580046929 | K10: 0.003188727812 | L10: 0.1873100093 | M10: 0.01458167564 | N10: 0.247455016 | O10: 0.002761403587 | P10: 0.1979592711
A11: 0.01227382803 | B11: 0.21830135 | C11: -0.002266893086 | D11: 0.1721469066 | E11: 0.002881341303 | F11: 0.2963992808 | G11: 0.009026723759 | H11: 0.1878448864 | I11: -0.0005866393622 | J11: 0.163785856 | K11: 0.02077316089 | L11: 0.2140765776 | M11: 0.01735418569 | N11: 0.3039487233 | O11: 0.008493672462 | P11: 0.2223576544
A12: 0.02250765606 | B12: 0.2589420766 | C12: -0.007424849706 | D12: 0.183354565 | E12: 0.01179289306 | F12: 0.3290252959 | G12: 0.004951537509 | H12: 0.1997804187 | I12: -0.002461764961 | J12: 0.1736041959 | K12: 0.01840909167 | L12: 0.2360150617 | M12: 0.01292921215 | N12: 0.348409111 | O12: 0.008671967967 | P12: 0.247018675
A13: 0.01490417713 | B13: 0.2956789074 | C13: 0.002729878373 | D13: 0.189015235 | E13: 0.01453763029 | F13: 0.3440291602 | G13: 0.003897907445 | H13: 0.2102026212 | I13: -0.00753778421 | J13: 0.1816250822 | K13: 0.023735802 | L13: 0.2557085872 | M13: 0.0008084836979 | N13: 0.3925657993 | O13: 0.007582299246 | P13: 0.2669750561
A14: 0.0209023788 | B14: 0.3338467209 | C14: 0.0004815436356 | D14: 0.1965635743 | E14: 0.01945051209 | F14: 0.3562536341 | G14: 0.01111445172 | H14: 0.2247071642 | I14: -0.01404989511 | J14: 0.1949860716 | K14: 0.02960861661 | L14: 0.2726772462 | M14: 0.0110733804 | N14: 0.4295684655 | O14: 0.01122585545 | P14: 0.2869432681
A15: 0.02380250022 | B15: 0.3670460549 | C15: -0.002150964186 | D15: 0.202127142 | E15: 0.02376325273 | F15: 0.3729545301 | G15: 0.006474620895 | H15: 0.2356666929 | I15: -0.0129205198 | J15: 0.2121191578 | K15: 0.02423413253 | L15: 0.2904926428 | M15: 0.009901510396 | N15: 0.4674226977 | O15: 0.01044350468 | P15: 0.3068327026
A16: 0.0285146106 | B16: 0.3987224532 | C16: -0.000970082862 | D16: 0.2112268528 | E16: 0.03441261438 | F16: 0.4072690184 | G16: 0.009573301456 | H16: 0.2480409024 | I16: -0.003998381241 | J16: 0.2346339549 | K16: 0.01785540177 | L16: 0.3066919267 | M16: 0.009106429449 | N16: 0.5008787336 | O16: 0.01349912765 | P16: 0.3296376917
A17: 0.02746129719 | B17: 0.4305922539 | C17: -0.006527934844 | D17: 0.221705003 | E17: 0.03927008559 | F17: 0.4252329793 | G17: 0.007088140895 | H17: 0.2656469989 | I17: -0.000876133369 | J17: 0.2644753579 | K17: 0.02776722424 | L17: 0.3259662517 | M17: 0.006886961249 | N17: 0.5284550762 | O17: 0.01443852014 | P17: 0.3517248458
A18: 0.02570028882 | B18: 0.4607457888 | C18: 0.004602579478 | D18: 0.2407961475 | E18: 0.04683824877 | F18: 0.4571377716 | G18: 0.009848705182 | H18: 0.2833030427 | I18: 0.005791125586 | J18: 0.2948089414 | K18: 0.03625806421 | L18: 0.3438495711 | M18: 0.01870914828 | N18: 0.5572164139 | O18: 0.02110688005 | P18: 0.376836811
A19: 0.02767521267 | B19: 0.4917896421 | C19: 0.001741328354 | D19: 0.2659660056 | E19: 0.05583656331 | F19: 0.4943977791 | G19: 0.009684674442 | H19: 0.2958044401 | I19: 0.00330490293 | J19: 0.3271777654 | K19: 0.0281036552 | L19: 0.3655569985 | M19: 0.008630258186 | N19: 0.5825323544 | O19: 0.01928237073 | P19: 0.403317855
A20: 0.03552093481 | B20: 0.519528763 | C20: -0.001369595314 | D20: 0.287635235 | E20: 0.06790980697 | F20: 0.5118065539 | G20: 0.007822706054 | H20: 0.3110912264 | I20: 0.01227442098 | J20: 0.3578893926 | K20: 0.02493598809 | L20: 0.3874120982 | M20: 0.01104350435 | N20: 0.610319518 | O20: 0.02259110942 | P20: 0.4265261124
A21: 0.03627975471 | B21: 0.5479947018 | C21: 0.006510629319 | D21: 0.3015713789 | E21: 0.0662517858 | F21: 0.5315414265 | G21: 0.01490064897 | H21: 0.3233726713 | I21: 0.006994899983 | J21: 0.3903759096 | K21: 0.02123119154 | L21: 0.410259275 | M21: 0.009187222458 | N21: 0.6382221647 | O21: 0.02305087611 | P21: 0.4490482183
A22: 0.02886665675 | B22: 0.5749556459 | C22: 0.00678158598 | D22: 0.3129306248 | E22: 0.07795887689 | F22: 0.5511551168 | G22: 0.01686458321 | H22: 0.3405805431 | I22: 0.01548333249 | J22: 0.41988205 | K22: 0.01798786999 | L22: 0.434149706 | M22: 0.01314027545 | N22: 0.6612824771 | O22: 0.02529759725 | P22: 0.4707051662
A23: 0.04858458104 | B23: 0.6019595402 | C23: 0.005931629955 | D23: 0.3299765786 | E23: 0.07439936201 | F23: 0.5907060674 | G23: 0.02047442986 | H23: 0.3575114031 | I23: 0.01936598681 | J23: 0.4496628555 | K23: 0.02003263061 | L23: 0.4564919108 | M23: 0.006182709476 | N23: 0.6864828983 | O23: 0.02785304711 | P23: 0.4961130363
A24: 0.04914480572 | B24: 0.6267447427 | C24: 0.007430192394 | D24: 0.3537217657 | E24: 0.06487486884 | F24: 0.6085003288 | G24: 0.02465854399 | H24: 0.3770457695 | I24: 0.02417194191 | J24: 0.4767509824 | K24: 0.03684264918 | L24: 0.4778361071 | M24: 0.01904570032 | N24: 0.7147106917 | O24: 0.03230981462 | P24: 0.5193300554
A25: 0.04316796859 | B25: 0.6529072854 | C25: 0.007907551092 | D25: 0.3818427434 | E25: 0.04787935875 | F25: 0.6288364382 | G25: 0.01869914432 | H25: 0.3947160736 | I25: 0.01814499497 | J25: 0.5045654844 | K25: 0.03666533778 | L25: 0.4984419058 | M25: 0.01687575132 | N25: 0.7370945254 | O25: 0.02704858669 | P25: 0.542629208
A26: 0.04431969797 | B26: 0.6799159278 | C26: 0.01674385897 | D26: 0.4147776587 | E26: 0.03519021596 | F26: 0.6840446515 | G26: 0.02482119637 | H26: 0.4125123743 | I26: 0.01859965889 | J26: 0.5334653615 | K26: 0.02739986715 | L26: 0.5221406124 | M26: 0.005664729203 | N26: 0.7597760185 | O26: 0.02467703207 | P26: 0.5723760864
A27: 0.04989257393 | B27: 0.7058791239 | C27: 0.01582728854 | D27: 0.4515187335 | E27: 0.03819731685 | F27: 0.7039868078 | G27: 0.03119647813 | H27: 0.4327171936 | I27: 0.01290191741 | J27: 0.5659162096 | K27: 0.02235174955 | L27: 0.5464038228 | M27: 0.025969826 | N27: 0.7818740559 | O27: 0.02804816434 | P27: 0.5983279924
A28: 0.05375398944 | B28: 0.7329833076 | C28: 0.01594973883 | D28: 0.4883474162 | E28: 0.03063908157 | F28: 0.7256792615 | G28: 0.03247694733 | H28: 0.4490465197 | I28: 0.0247359726 | J28: 0.5941753457 | K28: 0.02182179907 | L28: 0.5696046824 | M28: 0.00576580991 | N28: 0.803581411 | O28: 0.02644904839 | P28: 0.6233454206
A29: 0.05246599515 | B29: 0.7592376948 | C29: 0.02375897641 | D29: 0.5233346432 | E29: 0.03849838239 | F29: 0.7408201371 | G29: 0.03550578219 | H29: 0.4681113054 | I29: 0.0326033961 | J29: 0.6266475662 | K29: 0.03762519298 | L29: 0.5930235242 | M29: 0.0110796288 | N29: 0.8234356833 | O29: 0.03307676486 | P29: 0.6478015077
A30: 0.06149590636 | B30: 0.7854646084 | C30: 0.02490604607 | D30: 0.5572986634 | E30: 0.03036148536 | F30: 0.7744849818 | G30: 0.04281648435 | H30: 0.4864413763 | I30: 0.0319999146 | J30: 0.6553084832 | K30: 0.03558411573 | L30: 0.6376078943 | M30: -0.003650734046 | N30: 0.8439902326 | O30: 0.03193045977 | P30: 0.6772280343
A31: 0.05604629094 | B31: 0.8128504871 | C31: 0.02337181941 | D31: 0.5909926673 | E31: 0.01387615222 | F31: 0.7922561626 | G31: 0.03707790126 | H31: 0.5026863316 | I31: 0.0235978219 | J31: 0.6873372972 | K31: 0.04658390147 | L31: 0.6612958591 | M31: 0.01202612262 | N31: 0.8684283856 | O31: 0.03036857283 | P31: 0.7022638843
A32: 0.06361611187 | B32: 0.8374053535 | C32: 0.03060204598 | D32: 0.6244261491 | E32: 0.02887457609 | F32: 0.808026141 | G32: 0.0446232936 | H32: 0.5208844492 | I32: 0.0548167713 | J32: 0.720980527 | K32: 0.03288842117 | L32: 0.6852208663 | M32: 0.02255349886 | N32: 0.887129852 | O32: 0.03971067412 | P32: 0.7262961912
A33: 0.06273037444 | B33: 0.8620867145 | C33: 0.03004197031 | D33: 0.6575765957 | E33: 0.02921258099 | F33: 0.8223487778 | G33: 0.04285803065 | H33: 0.5363459518 | I33: 0.03631835803 | J33: 0.7474802249 | K33: 0.0356585967 | L33: 0.7155757482 | M33: 0.03077875823 | N33: 0.9087871512 | O33: 0.03822838134 | P33: 0.7500287377
A34: 0.06030409286 | B34: 0.8898198913 | C34: 0.02650986115 | D34: 0.6881927435 | E34: 0.05513855567 | F34: 0.8706635107 | G34: 0.04368657557 | H34: 0.5535003202 | I34: 0.0434387972 | J34: 0.7777769301 | K34: 0.03336567432 | L34: 0.7646404873 | M34: -0.0054199039 | N34: 0.9304540709 | O34: 0.03671766469 | P34: 0.7821497077
A35: 0.06430068985 | B35: 0.9176365037 | C35: 0.04661705966 | D35: 0.7225037427 | E35: 0.05901799227 | F35: 0.8858201414 | G35: 0.04676752413 | H35: 0.5704347543 | I35: 0.04788121519 | J35: 0.8066994432 | K35: 0.03893593016 | L35: 0.7885666519 | M35: 0.01206292771 | N35: 0.9519982378 | O35: 0.04508333414 | P35: 0.8062370679
A36: 0.0660343344 | B36: 0.9400466903 | C36: 0.04630441777 | D36: 0.7526521449 | E36: 0.06914577136 | F36: 0.9041889884 | G36: 0.03644111256 | H36: 0.5900570655 | I36: 0.0486188444 | J36: 0.8353151602 | K36: 0.04165008975 | L36: 0.81505218 | M36: 0.01037736423 | N36: 0.9776833771 | O36: 0.04551027635 | P36: 0.830713658
A37: 0.07045187677 | B37: 0.9662330821 | C37: 0.04344025627 | D37: 0.7795830077 | E37: 0.07300435255 | F37: 0.9347773764 | G37: 0.04101346557 | H37: 0.6072030943 | I37: 0.05694317942 | J37: 0.8663251716 | K37: 0.04084393693 | L37: 0.8405492478 | M37: 0.01439387755 | N37: 1.012790102 | O37: 0.04858442072 | P37: 0.858208726
A38: 0.0785287035 | B38: 0.9942621618 | C38: 0.04773496029 | D38: 0.8059666449 | E38: 0.05720809723 | F38: 0.9496721325 | G38: 0.04999598178 | H38: 0.622298485 | I38: 0.0583469371 | J38: 0.8971616039 | K38: 0.0448632706 | L38: 0.890916816 | M38: 0.008146391095 | N38: 1.046738017 | O38: 0.04926062023 | P38: 0.8867165516
A39: 0.07487288987 | B39: 1.021291174 | C39: 0.04121260718 | D39: 0.8320045978 | E39: 0.05505166327 | F39: 0.9638942012 | G39: 0.04592458097 | H39: 0.6394872948 | I39: 0.05227111901 | J39: 0.9273335401 | K39: 0.0468749584 | L39: 0.9159374843 | M39: 0.02390904818 | N39: 1.08442313 | O39: 0.04858812384 | P39: 0.9120530602
A40: 0.08950774868 | B40: 1.046238717 | C40: 0.05991931384 | D40: 0.8553696473 | E40: 0.07092013955 | F40: 0.9772289736 | G40: 0.04877157509 | H40: 0.6584165892 | I40: 0.05390246709 | J40: 0.9579274381 | K40: 0.05622349059 | L40: 0.9430578259 | M40: 0.01798961777 | N40: 1.11466242 | O40: 0.05674776466 | P40: 0.9361288015
A41: 0.08461866528 | B41: 1.073453882 | C41: 0.06243761008 | D41: 0.8789336487 | E41: 0.09301280603 | F41: 1.010360424 | G41: 0.048680321 | H41: 0.6690527149 | I41: 0.06132807583 | J41: 0.9888066876 | K41: 0.0440343904 | L41: 0.9668053226 | M41: 0.01503758288 | N41: 1.148691278 | O41: 0.05844992164 | P41: 0.9623005655
A42: 0.08685402572 | B42: 1.099409902 | C42: 0.05636202171 | D42: 0.9052699575 | E42: 0.08455598727 | F42: 1.043130684 | G42: 0.05449270209 | H42: 0.686830062 | I42: 0.0548625427 | J42: 1.018237952 | K42: 0.05680280427 | L42: 1.021809287 | M42: 0.04306079509 | N42: 1.183500271 | O42: 0.06242726841 | P42: 0.9940268737
A43: 0.09126758824 | B43: 1.124395575 | C43: 0.07549894974 | D43: 0.9299365378 | E43: 0.07681877042 | F43: 1.06176251 | G43: 0.06065480411 | H43: 0.7073879242 | I43: 0.0624359337 | J43: 1.049466743 | K43: 0.06108953928 | L43: 1.051310324 | M43: 0.0267722675 | N43: 1.220044441 | O43: 0.064933979 | P43: 1.020614865
A44: 0.09541558102 | B44: 1.148946889 | C44: 0.0698641936 | D44: 0.9487931623 | E44: 0.08027506371 | F44: 1.102490535 | G44: 0.04821637956 | H44: 0.7235021175 | I44: 0.07526431854 | J44: 1.079027614 | K44: 0.05861880879 | L44: 1.0777518 | M44: 0.02222956779 | N44: 1.252716797 | O44: 0.06426913043 | P44: 1.047604131
A45: 0.09601530929 | B45: 1.174976921 | C45: 0.06391236559 | D45: 0.9733602667 | E45: 0.08794904376 | F45: 1.119830215 | G45: 0.06047687183 | H45: 0.7384416914 | I45: 0.07330165555 | J45: 1.108922502 | K45: 0.06626815225 | L45: 1.104390896 | M45: 0.02541137394 | N45: 1.287504379 | O45: 0.06761925317 | P45: 1.072489553
A46: 0.09951022143 | B46: 1.199462559 | C46: 0.06647265827 | D46: 0.9976928869 | E46: 0.09889027104 | F46: 1.134813465 | G46: 0.0635727495 | H46: 0.7559266111 | I46: 0.07077713187 | J46: 1.138100546 | K46: 0.06262060876 | L46: 1.16024762 | M46: 0.04765319638 | N46: 1.324941744 | O46: 0.07278526246 | P46: 1.101597919
A47: 0.1011810079 | B47: 1.225576172 | C47: 0.07473299901 | D47: 1.021860865 | E47: 0.1099200547 | F47: 1.155988354 | G47: 0.0646570387 | H47: 0.7692755965 | I47: 0.07659995308 | J47: 1.166030395 | K47: 0.05807127804 | L47: 1.184134506 | M47: 0.03874809792 | N47: 1.3592862 | O47: 0.07484434705 | P47: 1.126021727
A48: 0.1122603814 | B48: 1.248507849 | C48: 0.08105244488 | D48: 1.043636673 | E48: 0.129416349 | F48: 1.194837536 | G48: 0.06831801186 | H48: 0.7836386913 | I48: 0.08084171762 | J48: 1.19816145 | K48: 0.05766631414 | L48: 1.211978923 | M48: 0.03688553348 | N48: 1.392567185 | O48: 0.08092010749 | P48: 1.153332615
A49: 0.1093731945 | B49: 1.275366148 | C49: 0.07584487398 | D49: 1.068017772 | E49: 0.1408147191 | F49: 1.212317835 | G49: 0.0723233136 | H49: 0.7992261543 | I49: 0.08266724025 | J49: 1.230281747 | K49: 0.08148844664 | L49: 1.241210729 | M49: 0.06311440219 | N49: 1.425171691 | O49: 0.08937517004 | P49: 1.178798868
A50: 0.1062665259 | B50: 1.298715656 | C50: 0.07987193763 | D50: 1.090688936 | E50: 0.1565464213 | F50: 1.256404658 | G50: 0.07620831331 | H50: 0.8154354407 | I50: 0.07994523272 | J50: 1.26298105 | K50: 0.06163996955 | L50: 1.294881989 | M50: 0.04676964134 | N50: 1.461452705 | O50: 0.08674972025 | P50: 1.211508634
A51: 0.1098890727 | B51: 1.323632101 | C51: 0.07946637149 | D51: 1.115133979 | E51: 0.1698672896 | F51: 1.303102424 | G51: 0.07534017786 | H51: 0.8303727041 | I51: 0.09490603581 | J51: 1.293504837 | K51: 0.07450537135 | L51: 1.325086848 | M51: 0.06289217 | N51: 1.495483951 | O51: 0.09526664125 | P51: 1.240902406
A52: 0.1099491492 | B52: 1.351414208 | C52: 0.07991579051 | D52: 1.136286894 | E52: 0.1616819451 | F52: 1.325308835 | G52: 0.0761938033 | H52: 0.8463014046 | I52: 0.1000459306 | J52: 1.32679145 | K52: 0.07638722658 | L52: 1.35362684 | M52: 0.05107327675 | N52: 1.529761714 | O52: 0.09360673172 | P52: 1.267070192
A53: 0.1113941396 | B53: 1.378883595 | C53: 0.07536258548 | D53: 1.159624755 | E53: 0.1536939169 | F53: 1.355086273 | G53: 0.08284723386 | H53: 0.8640751414 | I53: 0.09614697347 | J53: 1.358710947 | K53: 0.08061762278 | L53: 1.383305243 | M53: 0.05321713164 | N53: 1.564864967 | O53: 0.09332565768 | P53: 1.294935846
A54: 0.1088601599 | B54: 1.401074138 | C54: 0.09129362181 | D54: 1.181967784 | E54: 0.1406864077 | F54: 1.375123034 | G54: 0.08589384456 | H54: 0.8791562357 | I54: 0.09296013042 | J54: 1.387000878 | K54: 0.08995609358 | L54: 1.432595017 | M54: 0.04726530363 | N54: 1.598349503 | O54: 0.09384508023 | P54: 1.322180941
A55: 0.1250836998 | B55: 1.42232188 | C55: 0.08819452176 | D55: 1.207548565 | E55: 0.1306309799 | F55: 1.42246205 | G55: 0.08368878936 | H55: 0.8955937599 | I55: 0.09057483946 | J55: 1.41670688 | K55: 0.07422223066 | L55: 1.45728345 | M55: 0.04467042784 | N55: 1.634200557 | O55: 0.09100935555 | P55: 1.350873877
A56: 0.1235034689 | B56: 1.444399049 | C56: 0.09422648698 | D56: 1.231715392 | E56: 0.1156269759 | F56: 1.444115705 | G56: 0.08809094628 | H56: 0.9119005221 | I56: 0.1030854881 | J56: 1.446381834 | K56: 0.08910227567 | L56: 1.483796321 | M56: 0.05129932426 | N56: 1.668329455 | O56: 0.09499070944 | P56: 1.375805468
A57: 0.1191029201 | B57: 1.469143693 | C57: 0.09865776325 | D57: 1.252707189 | E57: 0.1193117723 | F57: 1.468820416 | G57: 0.09356942028 | H57: 0.9303518962 | I57: 0.1091422016 | J57: 1.478394041 | K57: 0.0773458307 | L57: 1.513721387 | M57: 0.04702350435 | N57: 1.704235339 | O57: 0.09487905894 | P57: 1.402481994
A58: 0.1277509083 | B58: 1.492124229 | C58: 0.09963514283 | D58: 1.277584517 | E58: 0.1341476416 | F58: 1.57011533 | G58: 0.1067170501 | H58: 0.9619073388 | I58: 0.1155614853 | J58: 1.508987867 | K58: 0.09405044218 | L58: 1.564832127 | M58: 0.03916928234 | N58: 1.739102634 | O58: 0.1024331361 | P58: 1.444950577
A59: 0.1291219021 | B59: 1.517200731 | C59: 0.1004276797 | D59: 1.303917373 | E59: 0.1374621317 | F59: 1.593803022 | G59: 0.1014812912 | H59: 0.9788049488 | I59: 0.1199223722 | J59: 1.541561246 | K59: 0.08910182863 | L59: 1.59289326 | M59: 0.05688463027 | N59: 1.773248314 | O59: 0.104914548 | P59: 1.471632699
A60: 0.1286920657 | B60: 1.542809452 | C60: 0.1139110078 | D60: 1.328672712 | E60: 0.1127523556 | F60: 1.64618458 | G60: 0.1084685326 | H60: 0.9989229424 | I60: 0.1103535915 | J60: 1.570946083 | K60: 0.09635871897 | L60: 1.623973519 | M60: 0.06944419195 | N60: 1.810308088 | O60: 0.1057114949 | P60: 1.503116768
A61: 0.1297644277 | B61: 1.566738878 | C61: 0.1167818035 | D61: 1.354799424 | E61: 0.125259695 | F61: 1.67407228 | G61: 0.110450685 | H61: 1.017528834 | I61: 0.1207294315 | J61: 1.605389408 | K61: 0.09618625666 | L61: 1.651298569 | M61: 0.07365903507 | N61: 1.845767375 | O61: 0.1104044763 | P61: 1.530799253
A62: 0.1293168589 | B62: 1.588144212 | C62: 0.1119654501 | D62: 1.379360558 | E62: 0.1272542651 | F62: 1.726275671 | G62: 0.1127808169 | H62: 1.036896769 | I62: 0.1159676537 | J62: 1.637505012 | K62: 0.09673993414 | L62: 1.705191465 | M62: 0.05933600788 | N62: 1.880614416 | O62: 0.1076229981 | P62: 1.564855443
A63: 0.1394822448 | B63: 1.615994315 | C63: 0.1061177999 | D63: 1.4021809 | E63: 0.1467313245 | F63: 1.780224353 | G63: 0.1097070798 | H63: 1.055058026 | I63: 0.1273919766 | J63: 1.669083271 | K63: 0.08832917238 | L63: 1.735482113 | M63: 0.05749997372 | N63: 1.915995002 | O63: 0.1107513674 | P63: 1.596288283
A64: 0.1248395319 | B64: 1.641101698 | C64: 0.1206480339 | D64: 1.425678656 | E64: 0.1472999776 | F64: 1.809849098 | G64: 0.1040800164 | H64: 1.075877485 | I64: 0.1249903316 | J64: 1.700008804 | K64: 0.1109042267 | L64: 1.759785723 | M64: 0.06676098332 | N64: 1.952685723 | O64: 0.1142175859 | P64: 1.623569598
A65: 0.1401709765 | B65: 1.668260829 | C65: 0.1248237242 | D65: 1.447448422 | E65: 0.1486458257 | F65: 1.837275039 | G65: 0.1192228993 | H65: 1.095997861 | I65: 0.1273956274 | J65: 1.729699354 | K65: 0.1054911812 | L65: 1.816130781 | M65: 0.08011660849 | N65: 1.988530701 | O65: 0.1208381204 | P65: 1.654763284
A66: 0.1379567136 | B66: 1.69559292 | C66: 0.127068609 | D66: 1.470337526 | E66: 0.1856389269 | F66: 1.950326703 | G66: 0.1136828462 | H66: 1.11553461 | I66: 0.1326116547 | J66: 1.760820993 | K66: 0.1010614634 | L66: 1.867826279 | M66: 0.0853330642 | N66: 2.023009845 | O66: 0.1261933254 | P66: 1.697635554
A67: 0.1411274696 | B67: 1.720567937 | C67: 0.1387774199 | D67: 1.493214691 | E67: 0.1938155169 | F67: 1.979435062 | G67: 0.1148564865 | H67: 1.136069873 | I67: 0.142239357 | J67: 1.792355352 | K67: 0.08651737124 | L67: 1.894335678 | M67: 0.07462223371 | N67: 2.056390797 | O67: 0.127422265 | P67: 1.724624198
A68: 0.1301213726 | B68: 1.74725545 | C68: 0.1268150906 | D68: 1.515518592 | E68: 0.2009741217 | F68: 2.007368849 | G68: 0.1185986772 | H68: 1.15656239 | I68: 0.1347956806 | J68: 1.820679797 | K68: 0.1064214607 | L68: 1.95181799 | M68: 0.06550187866 | N68: 2.09425465 | O68: 0.1261754689 | P68: 1.756208245
A69: 0.143044889 | B69: 1.773196029 | C69: 0.1448066905 | D69: 1.53622987 | E69: 0.233399868 | F69: 2.090074564 | G69: 0.1182731986 | H69: 1.177184514 | I69: 0.1243892809 | J69: 1.855068392 | K69: 0.1130845274 | L69: 1.979868417 | M69: 0.08562253788 | N69: 2.130655885 | O69: 0.1375172846 | P69: 1.791753953
A70: 0.1433575402 | B70: 1.801768129 | C70: 0.1354136194 | D70: 1.557510672 | E70: 0.2237675836 | F70: 2.120647123 | G70: 0.1210526998 | H70: 1.196920908 | I70: 0.1442958166 | J70: 1.88333825 | K70: 0.1186932748 | L70: 2.032645326 | M70: 0.07691576456 | N70: 2.167009524 | O70: =AVERAGE(A70,C70,E70,G70,I70,K70,M70) -> 0.1376423284 | P70: 1.822834276
A71: 0.154170456 | B71: 1.828699353 | C71: 0.1467306415 | D71: 1.57809392 | E71: 0.2242926011 | F71: 2.148397885 | G71: 0.1298695679 | H71: 1.221621852 | I71: 0.1288879414 | J71: 1.916068457 | K71: 0.113023296 | L71: 2.087102726 | M71: 0.06924852729 | N71: 2.204375421 | O71: 0.1380318616 | P71: 1.854908516
A72: 0.1448090995 | B72: 1.858466083 | C72: 0.1426398009 | D72: 1.600943896 | E72: 0.201680474 | F72: 2.20426546 | G72: 0.1262523731 | H72: 1.242517342 | I72: 0.1365117232 | J72: 1.948277926 | K72: 0.1245051747 | L72: 2.11701101 | M72: 0.07573385412 | N72: 2.243064474 | O72: 0.1360189285 | P72: 1.887792313
A73: 0.1484669372 | B73: 1.885499951 | C73: 0.149007452 | D73: 1.623376835 | E73: 0.184543555 | F73: 2.262175613 | G73: 0.1354785264 | H73: 1.265142557 | I73: 0.1427581906 | J73: 1.980646822 | K73: 0.1000043998 | L73: 2.14408607 | M73: 0.08062676216 | N73: 2.281277127 | O73: 0.1344122605 | P73: 1.920314997
A74: 0.1458759233 | B74: 1.945126633 | C74: 0.1403601468 | D74: 1.64202753 | E74: 0.1988525564 | F74: 2.34757458 | G74: 0.1373730227 | H74: 1.287730949 | I74: 0.1418231428 | J74: 2.010593986 | K74: 0.119481807 | L74: 2.221136786 | M74: 0.08201902111 | N74: 2.390862039 | O74: 0.1379693743 | P74: 1.977864643
A75: 0.1543365046 | B75: 1.975622754 | C75: 0.1561186959 | D75: 1.665411497 | E75: 0.2104903261 | F75: 2.374713247 | G75: 0.1437597846 | H75: 1.312538756 | I75: 0.1379283642 | J75: 2.040057382 | K75: 0.130968069 | L75: 2.250686722 | M75: 0.08963605389 | N75: 2.430334627 | O75: 0.1461768283 | P75: 2.00705214
A76: 0.1496821642 | B76: 2.004814351 | C76: 0.1574358717 | D76: 1.687960671 | E76: 0.2264899512 | F76: 2.433511874 | G76: 0.1466816167 | H76: 1.335319644 | I76: 0.1397345215 | J76: 2.072301364 | K76: 0.1249742011 | L76: 2.280213944 | M76: 0.094590839 | N76: 2.468019811 | O76: 0.1485127379 | P76: 2.040305951
A77: 0.1542482649 | B77: 2.035157664 | C77: 0.158151413 | D77: 1.708902694 | E77: 0.2465467403 | F77: 2.496453378 | G77: 0.1509864256 | H77: 1.361861942 | I77: 0.1391799872 | J77: 2.10068415 | K77: 0.1431875552 | L77: 2.306068276 | M77: 0.1030516128 | N77: 2.505080888 | O77: 0.156478857 | P77: 2.073458427
A78: 0.1490285744 | B78: 2.094518163 | C78: 0.1644976934 | D78: 1.729352156 | E78: 0.2499214311 | F78: 2.525623726 | G78: 0.1555513342 | H78: 1.381473639 | I78: 0.1509362459 | J78: 2.133637901 | K78: 0.1375466958 | L78: 2.384595787 | M78: 0.1159414152 | N78: 2.543481613 | O78: 0.1604890557 | P78: 2.113240427
A79: 0.1570806776 | B79: 2.125416457 | C79: 0.1703499133 | D79: 1.75385057 | E79: 0.2564541996 | F79: 2.556890838 | G79: 0.1546238859 | H79: 1.40382419 | I79: 0.1409704983 | J79: 2.160996975 | K79: 0.147113738 | L79: 2.414195634 | M79: 0.08650682246 | N79: 2.578815904 | O79: 0.1590142479 | P79: 2.141998653
A80: 0.152217187 | B80: 2.15716694 | C80: 0.1663733274 | D80: 1.777225186 | E80: 0.2414645751 | F80: 2.647544673 | G80: 0.1624242961 | H80: 1.424714914 | I80: 0.1464370762 | J80: 2.189533123 | K80: 0.1308697214 | L80: 2.440315435 | M80: 0.08518045147 | N80: 2.617042735 | O80: 0.1549952335 | P80: 2.179077572
A81: 0.1565511276 | B81: 2.187565055 | C81: 0.1595221087 | D81: 1.800130689 | E81: 0.2367725472 | F81: 2.675540304 | G81: 0.1577913389 | H81: 1.448633597 | I81: 0.1487610365 | J81: 2.22412981 | K81: 0.1417481899 | L81: 2.496524793 | M81: 0.1000936267 | N81: 2.690643207 | O81: 0.1573199965 | P81: 2.217595351
A82: 0.1439425598 | B82: 2.250758084 | C82: 0.1770753041 | D82: 1.82459242 | E82: 0.2269331863 | F82: 2.738104861 | G82: 0.162320435 | H82: 1.470552655 | I82: 0.1592802753 | J82: 2.253037955 | K82: 0.1446091632 | L82: 2.557109562 | M82: 0.1048712929 | N82: 2.765988404 | O82: 0.1598617452 | P82: 2.265734849
A83: 0.1565101619 | B83: 2.282775764 | C83: 0.1776931062 | D83: 1.847642498 | E83: 0.2123808116 | F83: 2.833209608 | G83: 0.1677550996 | H83: 1.493382353 | I83: 0.1592199629 | J83: 2.284958607 | K83: 0.1442086324 | L83: 2.585876975 | M83: 0.1130662113 | N83: 2.802564835 | O83: 0.1615477123 | P83: 2.304344377
A84: 0.1561087246 | B84: 2.314810261 | C84: 0.1740488658 | D84: 1.873520484 | E84: 0.2108155439 | F84: 2.862292493 | G84: 0.1603642603 | H84: 1.514123325 | I84: 0.1527768498 | J84: 2.312926507 | K84: 0.1584572097 | L84: 2.644434623 | M84: 0.1040062246 | N84: 2.83830999 | O84: 0.159511097 | P84: 2.337202526
A85: 0.1597020527 | B85: 2.343446877 | C85: 0.1845062897 | D85: 1.897302354 | E85: 0.2142117421 | F85: 2.895825112 | G85: 0.1610910768 | H85: 1.537972981 | I85: 0.1569257304 | J85: 2.344080349 | K85: 0.1456052065 | L85: 2.669582963 | M85: 0.1282961046 | N85: 2.878057596 | O85: 0.164334029 | P85: 2.366609747
A86: 0.1619266719 | B86: 2.40928694 | C86: 0.1817703744 | D86: 1.924846616 | E86: 0.218402793 | F86: 2.960734099 | G86: 0.1601132751 | H86: 1.557774864 | I86: 0.1527303333 | J86: 2.374606447 | K86: 0.150315774 | L86: 2.727088856 | M86: 0.1133347427 | N86: 2.914494565 | O86: 0.1626562806 | P86: 2.409833198
A87: 0.1598107318 | B87: 2.440242646 | C87: 0.1799945037 | D87: 1.950777972 | E87: 0.2353351067 | F87: 3.020790785 | G87: 0.1650499304 | H87: 1.57913636 | I87: 0.168504628 | J87: 2.40654024 | K87: 0.1537712788 | L87: 2.788096641 | M87: 0.1038854072 | N87: 2.951377119 | O87: 0.1666216552 | P87: 2.448137395
A88: 0.1646339024 | B88: 2.472322231 | C88: 0.1849408696 | D88: 1.976541161 | E88: 0.2508671085 | F88: 3.054696816 | G88: 0.1624477282 | H88: 1.604114136 | I88: 0.1639178147 | J88: 2.437746359 | K88: 0.1524476955 | L88: 2.815880296 | M88: 0.1156159242 | N88: 3.026775844 | O88: 0.1706958633 | P88: 2.484010978
A89: 0.1581855615 | B89: 2.503446113 | C89: 0.1830941066 | D89: 2.002267524 | E89: 0.2629089355 | F89: 3.120812032 | G89: 0.1623537019 | H89: 1.628164809 | I89: 0.149637796 | J89: 2.467832733 | K89: 0.1545302818 | L89: 2.848574064 | M89: 0.1310962687 | N89: 3.06386788 | O89: 0.1716866646 | P89: 2.519280736
A90: 0.1611582562 | B90: 2.567495971 | C90: 0.1818586141 | D90: 2.028970951 | E90: 0.2892275155 | F90: 3.212454762 | G90: 0.1721980423 | H90: 1.652103565 | I90: 0.1474979768 | J90: 2.499547747 | K90: 0.1757594819 | L90: 2.939585326 | M90: 0.1341505721 | N90: 3.136984864 | O90: 0.1802643513 | P90: 2.576734741
A91: 0.165538316 | B91: 2.600259859 | C91: 0.187879925 | D91: 2.055787017 | E91: 0.3071492165 | F91: 3.279971158 | G91: 0.1678765068 | H91: 1.675895024 | I91: 0.1445349554 | J91: 2.532941078 | K91: 0.1746030152 | L91: 2.96778216 | M91: 0.1332173372 | N91: 3.176516911 | O91: 0.1829713246 | P91: 2.612736172
A92: 0.1666709657 | B92: 2.634174014 | C92: 0.19591329 | D92: 2.086017058 | E92: 0.3025003274 | F92: 3.309466033 | G92: 0.1721513644 | H92: 1.699851687 | I92: 0.1470915973 | J92: 2.564970036 | K92: 0.1822483291 | L92: 2.997698835 | M92: 0.1287544395 | N92: 3.217477143 | O92: 0.1850471876 | P92: 2.644236401
A93: 0.1714577029 | B93: 2.66617966 | C93: 0.1893791556 | D93: 2.110084337 | E93: 0.3027905772 | F93: 3.343324946 | G93: 0.1714353388 | H93: 1.721887282 | I93: 0.1381200925 | J93: 2.596017016 | K93: 0.1689300438 | L93: 3.025650308 | M93: 0.1489840075 | N93: 3.255343455 | O93: 0.1844424169 | P93: 2.674069572
A94: 0.1738282914 | B94: 2.732195438 | C94: 0.1916457837 | D94: 2.141143415 | E94: 0.2797635893 | F94: 3.444242913 | G94: 0.1787233353 | H94: 1.746913868 | I94: 0.1421263317 | J94: 2.62786142 | K94: 0.1688835894 | L94: 3.112009839 | M94: 0.1448413481 | N94: 3.292113745 | O94: 0.1828303241 | P94: 2.728068663
A95: 0.1816185688 | B95: 2.76683391 | C95: 0.2073772252 | D95: 2.169567639 | E95: 0.293713361 | F95: 3.479198505 | G95: 0.1797653114 | H95: 1.770776665 | I95: 0.1466536646 | J95: 2.657883677 | K95: 0.1932196567 | L95: 3.141872697 | M95: 0.1424803336 | N95: 3.367804415 | O95: 0.1921183031 | P95: 2.764848215
A96: 0.1864436269 | B96: 2.800143211 | C96: 0.1987943798 | D96: 2.197173471 | E96: 0.2784877022 | F96: 3.513668189 | G96: 0.1777154704 | H96: 1.795026911 | I96: 0.1407015572 | J96: 2.689319116 | K96: 0.1703312869 | L96: 3.172372973 | M96: 0.1547684272 | N96: 3.40688509 | O96: 0.1867489215 | P96: 2.796369852
A97: 0.1900863896 | B97: 2.829451661 | C97: 0.1983682066 | D97: 2.228127104 | E97: 0.28704606 | F97: 3.548933289 | G97: 0.1856419941 | H97: 1.81882198 | I97: 0.1457753281 | J97: 2.722659305 | K97: 0.1966099441 | L97: 3.23374388 | M97: 0.1611935223 | N97: 3.446031735 | O97: 0.1949602064 | P97: 2.832538422
A98: 0.1967699702 | B98: 2.902710608 | C98: 0.1982574041 | D98: 2.256823646 | E98: 0.2817165355 | F98: 3.682663848 | G98: 0.1906244333 | H98: 1.844878055 | I98: 0.1465404406 | J98: 2.754949642 | K98: 0.1788089176 | L98: 3.290348477 | M98: 0.1468029246 | N98: 3.52681104 | O98: 0.1913600894 | P98: 2.894169331
A99: 0.1975384479 | B99: 2.936513709 | C99: 0.1983793949 | D99: 2.283553112 | E99: 0.2985115349 | F99: 3.719719149 | G99: 0.1867618039 | H99: 1.867068168 | I99: 0.1507711411 | J99: 2.785094069 | K99: 0.194588763 | L99: 3.324876376 | M99: 0.1371806612 | N99: 3.566073132 | O99: 0.194818821 | P99: 2.926128245
A100: 0.1989679908 | B100: 2.966313929 | C100: 0.1979188497 | D100: 2.312948359 | E100: 0.3160956502 | F100: 3.787815983 | G100: 0.1893807451 | H100: 1.892088833 | I100: 0.138608925 | J100: 2.820680966 | K100: 0.1877895867 | L100: 3.38492297 | M100: 0.1441337168 | N100: 3.601670434 | O100: 0.1961279235 | P100: 2.966634496
A101: 0.2117522806 | B101: 3.001688896 | C101: 0.2071016903 | D101: 2.340372934 | E101: 0.3277581682 | F101: 3.867786922 | G101: 0.1925021162 | H101: 1.917171161 | I101: 0.1540781682 | J101: 2.852260525 | K101: 0.1898500572 | L101: 3.415268159 | M101: 0.1464187726 | N101: 3.642078026 | O101: 0.2042087505 | P101: 3.005232375
A102: 0.221380194 | B102: 3.074947843 | C102: 0.2134129157 | D102: 2.366335075 | E102: 0.3408323228 | F102: 3.902083447 | G102: 0.2013086776 | H102: 1.943763424 | I102: 0.1539355392 | J102: 2.879618443 | K102: 0.1884626597 | L102: 3.478819828 | M102: 0.1634645586 | N102: 3.71876779 | O102: 0.211828124 | P102: 3.052047979
A103: 0.2170268943 | B103: 3.10737016 | C103: 0.2038006981 | D103: 2.39844703 | E103: 0.3566303353 | F103: 3.971885669 | G103: 0.1943488916 | H103: 1.966215061 | I103: 0.1509089768 | J103: 2.909205452 | K103: 0.1931145539 | L103: 3.539206687 | M103: 0.1509785652 | N103: 3.764904907 | O103: 0.2095441307 | P103: 3.093890709
A104: 0.2295142412 | B104: 3.143925549 | C104: 0.2074961116 | D104: 2.427786606 | E104: 0.3366620094 | F104: 4.007185813 | G104: 0.2082716301 | H104: 1.990611592 | I104: 0.1579179491 | J104: 2.939466561 | K104: 0.1932187378 | L104: 3.568493468 | M104: 0.1683540518 | N104: 3.805192133 | O104: 0.2144906759 | P104: 3.126094532
A105: 0.2275857826 | B105: 3.182891945 | C105: 0.2150883029 | D105: 2.460884833 | E105: 0.3394494702 | F105: 4.075936119 | G105: 0.2141682059 | H105: 2.012628126 | I105: 0.153218545 | J105: 2.969815758 | K105: 0.1925541212 | L105: 3.602921254 | M105: 0.1461820056 | N105: 3.841609137 | O105: 0.2126066333 | P105: 3.163812453
A106: 0.2363612254 | B106: 3.252144243 | C106: 0.2083926648 | D106: 2.492853508 | E106: 0.3217622389 | F106: 4.187182711 | G106: 0.2233099937 | H106: 2.065700881 | I106: 0.1516612247 | J106: 2.999327675 | K106: 0.2049625789 | L106: 3.700924725 | M106: 0.1441732794 | N106: 3.91635511 | O106: 0.2129461723 | P106: 3.230641265
A107: 0.2451099704 | B107: 3.283406435 | C107: 0.2128423005 | D107: 2.526636199 | E107: 0.322823748 | F107: 4.219449909 | G107: 0.2214761575 | H107: 2.091334994 | I107: 0.1608259355 | J107: 3.035128586 | K107: 0.1952099428 | L107: 3.732499033 | M107: 0.1591783141 | N107: 3.957019925 | O107: 0.2167809098 | P107: 3.263639297
A108: 0.2342532823 | B108: 3.319715939 | C108: 0.2147493015 | D108: 2.555169322 | E108: 0.3155606985 | F108: 4.32852582 | G108: 0.2260507395 | H108: 2.115157357 | I108: 0.163195009 | J108: 3.067220506 | K108: 0.1974502206 | L108: 3.771351419 | M108: 0.1714305455 | N108: 3.996341332 | O108: 0.2175271139 | P108: 3.307640242
A109: 0.253579393 | B109: 3.356005146 | C109: 0.2299129466 | D109: 2.589614322 | E109: 0.3267929455 | F109: 4.364055961 | G109: 0.2355092267 | H109: 2.14368253 | I109: 0.1610363399 | J109: 3.096665995 | K109: 0.2047500014 | L109: 3.804002364 | M109: 0.1771742726 | N109: 4.075558487 | O109: 0.226965018 | P109: 3.347083543
A110: 0.253546536 | B110: 3.429191313 | C110: 0.2285207063 | D110: 2.6187689 | E110: 0.3169615567 | F110: 4.402779249 | G110: 0.2291137228 | H110: 2.17064809 | I110: 0.1697836071 | J110: 3.194272915 | K110: 0.2200741321 | L110: 3.898301694 | M110: 0.1581464584 | N110: 4.11439872 | O110: 0.2251638171 | P110: 3.404051554
A111: 0.2621931583 | B111: 3.46386574 | C111: 0.2239981542 | D111: 2.648478184 | E111: 0.3370856245 | F111: 4.443069515 | G111: 0.2316242705 | H111: 2.195742403 | I111: 0.1507450889 | J111: 3.233338327 | K111: 0.220802029 | L111: 3.935511781 | M111: 0.1818280667 | N111: 4.152816226 | O111: 0.2297537703 | P111: 3.438974597
A112: 0.258211717 | B112: 3.500690791 | C112: 0.2408411105 | D112: 2.679022117 | E112: 0.3636747599 | F112: 4.549485893 | G112: 0.2317135284 | H112: 2.221674864 | I112: 0.1612652962 | J112: 3.275454225 | K112: 0.2174404263 | L112: 3.968160412 | M112: 0.1794711376 | N112: 4.186704682 | O112: 0.2360882823 | P112: 3.483027569
A113: 0.2711133907 | B113: 3.536138827 | C113: 0.2309346696 | D113: 2.709610932 | E113: 0.3690209736 | F113: 4.585424784 | G113: 0.2387345582 | H113: 2.24969013 | I113: 0.1356593023 | J113: 3.351447511 | K113: 0.2295177678 | L113: 4.032476519 | M113: 0.1792325079 | N113: 4.227400457 | O113: 0.2363161672 | P113: 3.527455594
A114: 0.2723819017 | B114: 3.605408812 | C114: 0.2443742752 | D114: 2.744063988 | E114: 0.4018647969 | F114: 4.697048322 | G114: 0.2440108359 | H114: 2.278970127 | I114: 0.1345608259 | J114: 3.427576253 | K114: 0.2222804974 | L114: 4.099585342 | M114: 0.1904621472 | N114: 4.301894124 | O114: 0.2442764686 | P114: 3.59350671
A115: 0.2762379001 | B115: 3.643496633 | C115: 0.2458679179 | D115: 2.773893823 | E115: 0.4152090599 | F115: 4.777151488 | G115: 0.2475869407 | H115: 2.307521582 | I115: 0.12732928 | J115: 3.466841237 | K115: 0.2201502522 | L115: 4.133068721 | M115: 0.1968115568 | N115: 4.34488495 | O115: 0.2470275582 | P115: 3.635265491
A116: 0.2703391761 | B116: 3.677481538 | C116: 0.2505390594 | D116: 2.802857936 | E116: 0.4197485745 | F116: 4.811781079 | G116: 0.2525215099 | H116: 2.336066972 | I116: 0.1038508303 | J116: 3.539170589 | K116: 0.2320594589 | L116: 4.201457877 | M116: 0.1958204682 | N116: 4.42232237 | O116: 0.2464112968 | P116: 3.684448337
A117: 0.2802915623 | B117: 3.712265569 | C117: 0.2554329981 | D117: 2.837375152 | E117: 0.4297121863 | F117: 4.888107419 | G117: 0.2469805628 | H117: 2.360994927 | I117: 0.1019442951 | J117: 3.5747468 | K117: 0.2377656351 | L117: 4.235894344 | M117: 0.1930846771 | N117: 4.461697594 | O117: 0.2493159881 | P117: 3.724440258
A118: 0.2768047651 | B118: 3.789829534 | C118: 0.2524066468 | D118: 2.869706055 | E118: 0.4351655145 | F118: 4.923299485 | G118: 0.2539846301 | H118: 2.391073936 | I118: 0.1248096178 | J118: 3.650420366 | K118: 0.2393225332 | L118: 4.306223241 | M118: 0.1760941371 | N118: 4.501720363 | O118: 0.251226835 | P118: 3.776038997
A119: 0.2784122775 | B119: 3.828484224 | C119: 0.2681515614 | D119: 2.900249987 | E119: 0.4280810555 | F119: 5.001843918 | G119: 0.2567047874 | H119: 2.417468794 | I119: 0.1229410991 | J119: 3.730602946 | K119: 0.2393859128 | L119: 4.376965605 | M119: 0.2012182896 | N119: 4.539772432 | O119: 0.2564135691 | P119: 3.827912558
A120: 0.2769175172 | B120: 3.864821274 | C120: 0.2692935616 | D120: 2.931533912 | E120: 0.4114116977 | F120: 5.08186551 | G120: 0.2655161669 | H120: 2.447085262 | I120: 0.1268694922 | J120: 3.771300463 | K120: 0.2317373703 | L120: 4.410996995 | M120: 0.1806428904 | N120: 4.579879978 | O120: 0.2517698138 | P120: 3.869640485
A121: 0.2983975659 | B121: 3.898904765 | C121: 0.2663578838 | D121: 2.96488705 | E121: 0.3974998494 | F121: 5.121346519 | G121: 0.2666254093 | H121: 2.474157829 | I121: 0.1188254108 | J121: 3.806674502 | K121: 0.2436393499 | L121: 4.444575856 | M121: 0.1974091555 | N121: 4.61921209 | O121: 0.2555363749 | P121: 3.90425123
A122: 0.2950032552 | B122: 3.969776772 | C122: 0.2784205725 | D122: 3.000246107 | E122: 0.3987931708 | F122: 5.275982877 | G122: 0.2661827703 | H122: 2.503412987 | I122: 0.1239611208 | J122: 3.918203565 | K122: 0.2432970703 | L122: 4.548222918 | M122: 0.2100854615 | N122: 4.698355173 | O122: 0.2593919174 | P122: 3.987742914
A123: 0.2930179735 | B123: 4.0057737 | C123: 0.2704584599 | D123: 3.037459747 | E123: 0.3955072661 | F123: 5.312805237 | G123: 0.2719732871 | H123: 2.532336583 | I123: 0.1303199679 | J123: 3.956868387 | K123: 0.2355744193 | L123: 4.580886015 | M123: 0.2141953011 | N123: 4.774283971 | O123: 0.2587209535 | P123: 4.02863052
A124: 0.2900548776 | B124: 4.038773615 | C124: 0.288278386 | D124: 3.076173509 | E124: 0.4051690797 | F124: 5.351288517 | G124: 0.2788401643 | H124: 2.562560434 | I124: 0.1364480083 | J124: 3.993430042 | K124: 0.2439962079 | L124: 4.615916499 | M124: 0.2155686667 | N124: 4.81543459 | O124: 0.2654793415 | P124: 4.064796744
A125: 0.301492239 | B125: 4.078013152 | C125: 0.2843613923 | D125: 3.110283327 | E125: 0.4161794235 | F125: 5.392902807 | G125: 0.2822960665 | H125: 2.589888604 | I125: 0.1237262165 | J125: 4.02861404 | K125: 0.2443074187 | L125: 4.649517928 | M125: 0.2020381143 | N125: 4.852557585 | O125: 0.2649144101 | P125: 4.100253921
A126: 0.3080278387 | B126: 4.147884802 | C126: 0.2781563749 | D126: 3.148710817 | E126: 0.4378213485 | F126: 5.505501988 | G126: 0.2870265394 | H126: 2.618582591 | I126: 0.144669277 | J126: 4.13754086 | K126: 0.2483132233 | L126: 4.754441851 | M126: 0.2165036152 | N126: 4.891051188 | O126: 0.2743597453 | P126: 4.171959157
A127: 0.3055847685 | B127: 4.183559586 | C127: 0.2874414871 | D127: 3.187911386 | E127: 0.4316142698 | F127: 5.545975427 | G127: 0.2946184576 | H127: 2.643499715 | I127: 0.1512771348 | J127: 4.170696494 | K127: 0.2404477696 | L127: 4.78777998 | M127: 0.2048039312 | N127: 4.929688015 | O127: 0.2736839741 | P127: 4.2070158
A128: 0.3118617584 | B128: 4.220404934 | C128: 0.2862315128 | D128: 3.225591692 | E128: 0.4516271253 | F128: 5.579521298 | G128: 0.2935602019 | H128: 2.669645179 | I128: 0.15217565 | J128: 4.21152369 | K128: 0.255181094 | L128: 4.817867077 | M128: 0.2067892378 | N128: 4.969428966 | O128: 0.2796323686 | P128: 4.241997548
A129: 0.3029845903 | B129: 4.25929971 | C129: 0.3005478283 | D129: 3.259576931 | E129: 0.4667237401 | F129: 5.658341962 | G129: 0.3020600478 | H129: 2.698729069 | I129: 0.1533935343 | J129: 4.288532169 | K129: 0.2629043659 | L129: 4.884775966 | M129: 0.2246142675 | N129: 5.009948243 | O129: 0.2876040535 | P129: 4.294172007
A130: 0.3150667002 | B130: 4.33289269 | C130: 0.3053920219 | D130: 3.297637303 | E130: 0.4779490332 | F130: 5.767503864 | G130: 0.300039947 | H130: 2.727321969 | I130: 0.1518970355 | J130: 4.36899779 | K130: 0.271831726 | L130: 4.950698203 | M130: 0.2299145112 | N130: 5.120306274 | O130: 0.2931558536 | P130: 4.366479727
A131: 0.3164441387 | B131: 4.371451984 | C131: 0.3050419688 | D131: 3.335665739 | E131: 0.4898515344 | F131: 5.83553326 | G131: 0.3037685404 | H131: 2.755308642 | I131: 0.1473593215 | J131: 4.402247579 | K131: 0.2698640029 | L131: 4.980341162 | M131: 0.2185106277 | N131: 5.164959073 | O131: 0.2929771621 | P131: 4.406501063
A132: 0.3152338912 | B132: 4.406922347 | C132: 0.3074856599 | D132: 3.365044155 | E132: 0.4854855438 | F132: 5.873677877 | G132: 0.3035744528 | H132: 2.786323275 | I132: 0.1470715056 | J132: 4.472743808 | K132: 0.2639992287 | L132: 5.024010782 | M132: 0.2263727039 | N132: 5.202855187 | O132: 0.2927461408 | P132: 4.447368204
A133: 0.3208249062 | B133: 4.443048017 | C133: 0.3109759341 | D133: 3.397748219 | E133: 0.4896785319 | F133: 5.948674302 | G133: 0.3028404464 | H133: 2.811420043 | I133: 0.1419015974 | J133: 4.51204576 | K133: 0.2800286313 | L133: 5.052604591 | M133: 0.2162906279 | N133: 5.240645403 | O133: 0.2946486679 | P133: 4.486598048
A134: 0.3235016267 | B134: 4.513896247 | C134: 0.3134338061 | D134: 3.437321949 | E134: 0.4876529177 | F134: 6.021057429 | G134: 0.312579299 | H134: 2.842564066 | I134: 0.1495469982 | J134: 4.58756943 | K134: 0.2732147773 | L134: 5.123892363 | M134: 0.2258837223 | N134: 5.280949411 | O134: =AVERAGE(A134,C134,E134,G134,I134,K134,M134) -> 0.2979733068 | P134: 4.543892985
A135: 0.3324250877 | B135: 4.552345647 | C135: 0.3119510164 | D135: 3.468354989 | E135: 0.4652830462 | F135: 6.061234022 | G135: 0.3099736075 | H135: 2.874444283 | I135: 0.1514650757 | J135: 4.666281353 | K135: 0.2740286539 | L135: 5.196793499 | M135: 0.2394376944 | N135: 5.320419538 | O135: 0.2977948831 | P135: 4.591410476
A136: 0.3241977096 | B136: 4.5892948 | C136: 0.3136571497 | D136: 3.506673437 | E136: 0.4561107357 | F136: 6.092402775 | G136: 0.3212621063 | H136: 2.900111466 | I136: 0.1421282316 | J136: 4.705031665 | K136: 0.2833463748 | L136: 5.229192139 | M136: 0.2261654288 | N136: 5.356352765 | O136: 0.2952668195 | P136: 4.625579864
A137: 0.3315494955 | B137: 4.627595161 | C137: 0.3219249348 | D137: 3.542923246 | E137: 0.4315118492 | F137: 6.199627526 | G137: 0.3222646316 | H137: 2.929435651 | I137: 0.1416880017 | J137: 4.73911007 | K137: 0.2854743352 | L137: 5.265559377 | M137: 0.2305685977 | N137: 5.399989978 | O137: 0.2949974065 | P137: 4.67203443
A138: 0.3345170617 | B138: 4.704645609 | C138: 0.3251846383 | D138: 3.581298373 | E138: 0.4445133607 | F138: 6.270911618 | G138: 0.3272993614 | H138: 2.959866584 | I138: 0.1408234735 | J138: 4.851021816 | K138: 0.2904228369 | L138: 5.375100309 | M138: 0.2476638804 | N138: 5.515423624 | O138: 0.3014892304 | P138: 4.751181133
A139: 0.3293708712 | B139: 4.743397145 | C139: 0.3225911657 | D139: 3.619367089 | E139: 0.4518410563 | F139: 6.310053965 | G139: 0.3241307785 | H139: 2.990153398 | I139: 0.1394522811 | J139: 4.888940045 | K139: 0.2870358527 | L139: 5.407431244 | M139: 0.2451064189 | N139: 5.554910534 | O139: 0.2999326321 | P139: 4.787750488
A140: 0.3372857471 | B140: 4.780027634 | C140: 0.3358638783 | D140: 3.656086729 | E140: 0.4768619935 | F140: 6.416524823 | G140: 0.3408847998 | H140: 3.022367488 | I140: 0.1371160646 | J140: 4.927233737 | K140: 0.2784187843 | L140: 5.446043765 | M140: 0.2291817963 | N140: 5.595891021 | O140: 0.3050875806 | P140: 4.834882171
A141: 0.350031356 | B141: 4.814443127 | C141: 0.3369328131 | D141: 3.693573981 | E141: 0.4885658125 | F141: 6.451463629 | G141: 0.3373938302 | H141: 3.052207501 | I141: 0.1361410692 | J141: 4.967592472 | K141: 0.295388326 | L141: 5.484191027 | M141: 0.2428379158 | N141: 5.634147653 | O141: 0.3124701604 | P141: 4.871088484
A142: 0.3534922252 | B142: 4.891307711 | C142: 0.3485554208 | D142: 3.738528762 | E142: 0.4962869982 | F142: 6.487679929 | G142: 0.3541481743 | H142: 3.081462659 | I142: 0.1328134661 | J142: 5.07772366 | K142: 0.2923264603 | L142: 5.596292626 | M142: 0.2377294252 | N142: 5.672069808 | O142: 0.3164788815 | P142: 4.935009308
A143: 0.3607062499 | B143: 4.928521597 | C143: 0.3480982284 | D143: 3.776591436 | E143: 0.5158690115 | F143: 6.557757204 | G143: 0.3564206014 | H143: 3.111779509 | I143: 0.1305073127 | J143: 5.114916958 | K143: 0.2952756236 | L143: 5.629089399 | M143: 0.2506197492 | N143: 5.712421847 | O143: 0.3224995395 | P143: 4.975868278
A144: 0.3570661445 | B144: 4.965985427 | C144: 0.3451701005 | D144: 3.813198869 | E144: 0.5372098088 | F144: 6.607008192 | G144: 0.3482104341 | H144: 3.142540849 | I144: 0.1235967626 | J144: 5.155452449 | K144: 0.2961196005 | L144: 5.662652346 | M144: 0.2477988352 | N144: 5.753896527 | O144: 0.3221673838 | P144: 5.014390666
A145: 0.3651325901 | B145: 5.006982114 | C145: 0.3598674635 | D145: 3.846213084 | E145: 0.5306757987 | F145: 6.325403339 | G145: 0.3463260333 | H145: 3.175603773 | I145: 0.1213391498 | J145: 5.227336156 | K145: 0.3011692812 | L145: 5.73063411 | M145: 0.2658935636 | N145: 5.83031431 | O145: 0.3272005543 | P145: 5.02035527
A146: 0.3629569958 | B146: 5.080284845 | C146: 0.3543037921 | D146: 3.880203214 | E146: 0.4806925853 | F146: 6.317485698 | G146: 0.3507921348 | H146: 3.205966834 | I146: 0.1106570164 | J146: 5.299474022 | K146: 0.3013023486 | L146: 5.803672972 | M146: 0.2691245576 | N146: 5.912681518 | O146: 0.3185470615 | P146: 5.071395586
A147: 0.3667691847 | B147: 5.116663649 | C147: 0.3563280404 | D147: 3.916622197 | E147: 0.4834619164 | F147: 6.373958154 | G147: 0.354860276 | H147: 3.23343999 | I147: 0.120378385 | J147: 5.336896641 | K147: 0.3136216104 | L147: 5.842768115 | M147: 0.2602825065 | N147: 5.945686038 | O147: 0.3222431313 | P147: 5.109433541
A148: 0.367808193 | B148: 5.15496024 | C148: 0.3665476789 | D148: 3.950516232 | E148: 0.5140184859 | F148: 6.394250237 | G148: 0.3597939263 | H148: 3.265022726 | I148: 0.1184502617 | J148: 5.405177065 | K148: 0.3121455262 | L148: 5.911709912 | M148: 0.2578546355 | N148: 5.985218663 | O148: 0.3280883868 | P148: 5.152407868
A149: 0.3682580342 | B149: 5.196226589 | C149: 0.3736756494 | D149: 3.987220624 | E149: 0.5250191192 | F149: 6.397823571 | G149: 0.3710128615 | H149: 3.295359793 | I149: 0.1150605703 | J149: 5.443418192 | K149: 0.3137217959 | L149: 5.943325017 | M149: 0.2621385703 | N149: 6.023670311 | O149: 0.3326980858 | P149: 5.183863443
A150: 0.3787842393 | B150: 5.269989195 | C150: 0.3896677494 | D150: 4.023893079 | E150: 0.5347491304 | F150: 6.404767041 | G150: 0.3775178889 | H150: 3.327926818 | I150: 0.11192025 | J150: 5.519873875 | K150: 0.3259374698 | L150: 6.012136611 | M150: 0.2782196552 | N150: 6.064653113 | O150: 0.3423994833 | P150: 5.23189139
A151: 0.386253198 | B151: 5.308869183 | C151: 0.3765809039 | D151: 4.061386086 | E151: 0.5728858709 | F151: 6.467796008 | G151: 0.3784817706 | H151: 3.360132533 | I151: 0.09879261255 | J151: 5.597183301 | K151: 0.3267585735 | L151: 6.082559832 | M151: 0.2824493994 | N151: 6.103196193 | O151: 0.3460289041 | P151: 5.283017591
A152: 0.3827902923 | B152: 5.346199052 | C152: 0.3910043091 | D152: 4.099665405 | E152: 0.5681822697 | F152: 6.494958528 | G152: 0.3769218922 | H152: 3.391406234 | I152: 0.09815789759 | J152: 5.631610887 | K152: 0.3238696853 | L152: 6.113544754 | M152: 0.2810866882 | N152: 6.185211562 | O152: 0.3460018621 | P152: 5.32322806
A153: 0.3909226259 | B153: 5.384765885 | C153: 0.3877257804 | D153: 4.140282374 | E153: 0.5578157802 | F153: 6.515927348 | G153: 0.3803604345 | H153: 3.42154604 | I153: 0.1086587335 | J153: 5.668723316 | K153: 0.3147269537 | L153: 6.14978989 | M153: 0.2927821626 | N153: 6.223337413 | O153: 0.347570353 | P153: 5.357767466
A154: 0.3958346943 | B154: 5.459694124 | C154: 0.3956823548 | D154: 4.179936662 | E154: 0.5261615912 | F154: 6.542074468 | G154: 0.388124759 | H154: 3.486419865 | I154: 0.09521353369 | J154: 5.777339947 | K154: 0.3368316094 | L154: 6.25833549 | M154: 0.2650270611 | N154: 6.296524417 | O154: 0.3432679434 | P154: 5.428617853
A155: 0.4043012609 | B155: 5.501604762 | C155: 0.414125969 | D155: 4.228054821 | E155: 0.5381477376 | F155: 6.533364062 | G155: 0.3897870332 | H155: 3.519250869 | I155: 0.09887738774 | J155: 5.813771923 | K155: 0.3384577731 | L155: 6.290903105 | M155: 0.2818637341 | N155: 6.333156691 | O155: 0.3522229851 | P155: 5.460015176
A156: 0.4059694707 | B156: 5.539668806 | C156: 0.405302917 | D156: 4.270701587 | E156: 0.556679368 | F156: 6.523102286 | G156: 0.3996020555 | H156: 3.550143043 | I156: 0.09178412457 | J156: 5.851836294 | K156: 0.3278131535 | L156: 6.32496314 | M156: 0.2822315445 | N156: 6.372277295 | O156: 0.3527689477 | P156: 5.490384636
A157: 0.40848958 | B157: 5.579948135 | C157: 0.4149781913 | D157: 4.316542517 | E157: 0.545809716 | F157: 6.531458716 | G157: 0.399548461 | H157: 3.578883529 | I157: 0.08477153877 | J157: 5.890478299 | K157: 0.3292167187 | L157: 6.355481065 | M157: 0.2849330753 | N157: 6.410522933 | O157: 0.3525353259 | P157: 5.523330742
A158: 0.4202318192 | B158: 5.655503266 | C158: 0.4183335106 | D158: 4.358911067 | E158: 0.5298053225 | F158: 6.57388403 | G158: 0.3963471949 | H158: 3.614075324 | I158: 0.09305885062 | J158: 5.995287164 | K158: 0.3343004485 | L158: 6.449182907 | M158: 0.2765901635 | N158: 6.447165045 | O158: 0.3526667585 | P158: 5.5848584
A159: 0.4244074722 | B159: 5.690844598 | C159: 0.4268581669 | D159: 4.397959149 | E159: 0.520316263 | F159: 6.604821314 | G159: 0.4097631822 | H159: 3.6497454 | I159: 0.08165825779 | J159: 6.031526789 | K159: 0.3372249504 | L159: 6.471309372 | M159: 0.295098871 | N159: 6.524193915 | O159: 0.3564753091 | P159: 5.624342934
A160: 0.4130891959 | B160: 5.725300975 | C160: 0.4347337782 | D160: 4.439761485 | E160: 0.5066413184 | F160: 6.680919719 | G160: 0.4110037039 | H160: 3.680085934 | I160: 0.0916608423 | J160: 6.067999199 | K160: 0.3280210743 | L160: 6.189603754 | M160: 0.2823349088 | N160: 6.560620179 | O160: 0.3524978317 | P160: 5.620613035
A161: 0.4261039197 | B161: 5.761646144 | C161: 0.4389419158 | D161: 4.479504676 | E161: 0.5096497138 | F161: 6.714857261 | G161: 0.4137911648 | H161: 3.714759591 | I161: 0.08465826511 | J161: 6.140033669 | K161: 0.3080609689 | L161: 5.833796816 | M161: 0.2837415785 | N161: 6.595281463 | O161: 0.352135361 | P161: 5.605697089
A162: 0.4284019768 | B162: 5.834236737 | C162: 0.4291775326 | D162: 4.522479432 | E162: 0.5310419699 | F162: 6.833779129 | G162: 0.4216252267 | H162: 3.752772552 | I162: 0.08130586396 | J162: 6.212686785 | K162: 0.313300242 | L162: 5.978766364 | M162: 0.3007637958 | N162: 6.665971457 | O162: 0.3579452297 | P162: 5.685813208
A163: 0.4288324217 | B163: 5.872053736 | C163: 0.4569941262 | D163: 4.562830268 | E163: 0.5371954044 | F163: 6.864209891 | G163: 0.4252444208 | H163: 3.791833054 | I163: 0.07326383144 | J163: 6.247159425 | K163: 0.3098550439 | L163: 6.036221334 | M163: 0.2968712399 | N163: 6.701224733 | O163: 0.3611794983 | P163: 5.725076063
A164: 0.4314325253 | B164: 5.909477552 | C164: 0.4518682261 | D164: 4.605600175 | E164: 0.5430702865 | F164: 6.898863631 | G164: 0.4183875521 | H164: 3.824677054 | I164: 0.07817535351 | J164: 6.314683726 | K164: 0.3274652114 | L164: 6.141259546 | M164: 0.2899949501 | N164: 6.739135893 | O164: 0.3629134436 | P164: 5.776242511
A165: 0.4400176803 | B165: 5.946157333 | C165: 0.4554363588 | D165: 4.643949408 | E165: 0.5601139863 | F165: 6.996511588 | G165: 0.4214346906 | H165: 3.856479869 | I165: 0.08359028647 | J165: 6.350370554 | K165: 0.3182750692 | L165: 6.186047178 | M165: 0.307940642 | N165: 6.775675578 | O165: 0.369544102 | P165: 5.822170215
A166: 0.4433176418 | B166: 6.015687701 | C166: 0.4533688227 | D166: 4.687289269 | E166: 0.5593949556 | F166: 7.028755817 | G166: 0.4325110714 | H166: 3.892574218 | I166: 0.07972743362 | J166: 6.420669232 | K166: 0.3300315142 | L166: 6.251184144 | M166: 0.3071714441 | N166: 6.851952163 | O166: 0.3722175548 | P166: 5.878301792
A167: 0.4411428173 | B167: 6.049715519 | C167: 0.4582355917 | D167: 4.727587742 | E167: 0.5636480451 | F167: 7.061735679 | G167: 0.439757208 | H167: 3.924890549 | I167: 0.07223421708 | J167: 6.489824772 | K167: 0.3553702186 | L167: 6.265685902 | M167: 0.2953432749 | N167: 6.889109301 | O167: 0.3751044818 | P167: 5.915507066
A168: 0.4386084775 | B168: 6.090890821 | C168: 0.4659367104 | D168: 4.76633718 | E168: 0.561461846 | F168: 7.096504859 | G168: 0.4472022255 | H168: 3.960882368 | I168: 0.07333884637 | J168: 6.522225438 | K168: 0.3231026232 | L168: 6.238683467 | M168: 0.2964640657 | N168: 6.925312772 | O168: 0.3723021135 | P168: 5.942976701
A169: 0.4491172731 | B169: 6.127476076 | C169: 0.4787928859 | D169: 4.805128049 | E169: 0.5367257198 | F169: 7.199639742 | G169: 0.4538758099 | H169: 3.994681198 | I169: 0.06813426192 | J169: 6.55799198 | K169: 0.3293955574 | L169: 6.182551942 | M169: 0.3117088477 | N169: 6.963413739 | O169: 0.375392908 | P169: 5.975840389
A170: 0.4583357275 | B170: 6.194685034 | C170: 0.4676515857 | D170: 4.847985708 | E170: 0.5177521209 | F170: 7.272437509 | G170: 0.4465399186 | H170: 4.031036927 | I170: 0.06372980153 | J170: 6.659706458 | K170: 0.336947764 | L170: 6.227450681 | M170: 0.3115065893 | N170: 7.036816592 | O170: 0.3717805011 | P170: 6.038588415
A171: 0.4544439415 | B171: 6.232542628 | C171: 0.4764889677 | D171: 4.889618006 | E171: 0.5109547575 | F171: 7.343580247 | G171: 0.4532333215 | H171: 4.068945337 | I171: 0.0701753671 | J171: 6.696612672 | K171: 0.3190884242 | L171: 6.252648787 | M171: 0.3084809085 | N171: 7.068436327 | O171: 0.370409384 | P171: 6.078912
A172: 0.4555334647 | B172: 6.267592841 | C172: 0.4855621358 | D172: 4.934543441 | E172: 0.52064538 | F172: 7.416822694 | G172: 0.4600396752 | H172: 4.103230535 | I172: 0.06101796404 | J172: 6.72881752 | K172: 0.3291629255 | L172: 6.286675258 | M172: 0.3170672556 | N172: 7.100374915 | O172: 0.375575543 | P172: 6.119722458
A173: 0.4514915744 | B173: 6.302002245 | C173: 0.4816702008 | D173: 4.975789057 | E173: 0.5058322847 | F173: 7.457041693 | G173: 0.4654730856 | H173: 4.141377796 | I173: 0.06310613826 | J173: 6.764160655 | K173: 0.3342373669 | L173: 6.3197932 | M173: 0.3003530701 | N173: 7.173235543 | O173: 0.3717376744 | P173: 6.161914313
A174: 0.4657858113 | B174: 6.374810307 | C174: 0.4925622046 | D174: 5.015150743 | E174: 0.5067488054 | F174: 7.535897696 | G174: 0.4569990436 | H174: 4.175447537 | I174: 0.04227598819 | J174: 6.618094257 | K174: 0.3329624236 | L174: 6.433305044 | M174: 0.3242065509 | N174: 7.206766663 | O174: 0.3745058325 | P174: 6.194210321
A175: 0.4582212865 | B175: 6.411066168 | C175: 0.4955686132 | D175: 5.055155751 | E175: 0.4865870873 | F175: 7.576642654 | G175: 0.4776932796 | H175: 4.20931886 | I175: -0.007499790906 | J175: 6.319453253 | K175: 0.3285030027 | L175: 6.469717419 | M175: 0.309360077 | N175: 7.236762039 | O175: 0.3640619365 | P175: 6.182588021
A176: 0.4575934013 | B176: 6.445821784 | C176: 0.501840661 | D176: 5.09450708 | E176: 0.4826154311 | F176: 7.658373461 | G176: 0.4735453427 | H176: 4.245883981 | I176: -0.01068358775 | J176: 6.386919212 | K176: 0.3470488389 | L176: 6.509943884 | M176: 0.332521076 | N176: 7.269951158 | O176: 0.3692115948 | P176: 6.23020008
A177: 0.46799317 | B177: 6.480891134 | C177: 0.5033720533 | D177: 5.136630213 | E177: 0.4719687502 | F177: 7.753222592 | G177: 0.4753524065 | H177: 4.282167216 | I177: 0.004384928616 | J177: 6.495974267 | K177: 0.3531551609 | L177: 6.579799998 | M177: 0.3270817796 | N177: 7.309426494 | O177: 0.3719011785 | P177: 6.291158845
A178: 0.459484458 | B178: 6.55282526 | C178: 0.5110462507 | D178: 5.180052648 | E178: 0.4473898808 | F178: 7.849346861 | G178: 0.4859596491 | H178: 4.317712235 | I178: 0.001175950456 | J178: 6.548738277 | K178: 0.3486141066 | L178: 6.634905521 | M178: 0.3197406232 | N178: 7.381751263 | O178: 0.3676301313 | P178: 6.352190295
A179: 0.4634885987 | B179: 6.585233369 | C179: 0.5202455819 | D179: 5.21729736 | E179: 0.4523808757 | F179: 7.996938445 | G179: 0.502889206 | H179: 4.357859267 | I179: -0.002663816752 | J179: 6.569463798 | K179: 0.3472001106 | L179: 6.665726096 | M179: 0.3127077222 | N179: 7.417818744 | O179: 0.3708926112 | P179: 6.401476726
A180: 0.4726320008 | B180: 6.613859256 | C180: 0.5202980836 | D180: 5.259093654 | E180: 0.4584861298 | F180: 8.047353844 | G180: 0.5036268135 | H180: 4.393789567 | I180: 0.0002856899422 | J180: 6.616267199 | K180: 0.3559953968 | L180: 6.728690114 | M180: 0.318753322 | N180: 7.490038193 | O180: 0.3757253481 | P180: 6.449870261
A181: 0.4676602781 | B181: 6.638354391 | C181: 0.5146487057 | D181: 5.299098661 | E181: 0.4693815112 | F181: 8.098310515 | G181: 0.5102981627 | H181: 4.431485119 | I181: -0.001632195781 | J181: 6.64310929 | K181: 0.3540809701 | L181: 6.760925566 | M181: 0.3208758682 | N181: 7.52230663 | O181: 0.3764733286 | P181: 6.484798596
A182: 0.4252834121 | B182: 6.134088875 | C182: 0.5301285783 | D182: 5.340295942 | E182: 0.4738948246 | F182: 8.148088639 | G182: 0.5064075192 | H182: 4.467689796 | I182: 0.00310639715 | J182: 6.691567613 | K182: 0.3497479608 | L182: 6.837934761 | M182: 0.3020316611 | N182: 7.556666421 | O182: 0.3700857647 | P182: 6.453761721
A183: 0.4263225198 | B183: 6.188502534 | C183: 0.5230649312 | D183: 5.379608142 | E183: 0.5059627195 | F183: 8.294693684 | G183: 0.5134297907 | H183: 4.503954258 | I183: -0.01953252746 | J183: 6.711917672 | K183: 0.3569187224 | L183: 6.915996579 | M183: 0.3381800403 | N183: 7.593464198 | O183: 0.3777637424 | P183: 6.512591009
A184: 0.432214886 | B184: 6.240627258 | C184: 0.5364126464 | D184: 5.421333659 | E184: 0.5126909415 | F184: 8.346698148 | G184: 0.5171002944 | H184: 4.544676614 | I184: -0.02906855817 | J184: 6.705675177 | K184: 0.3681804736 | L184: 6.956604394 | M184: 0.3361862898 | N184: 7.631397348 | O184: 0.3819595676 | P184: 6.549573228
A185: 0.4288183153 | B185: 6.283400812 | C185: 0.5300262074 | D185: 5.463691564 | E185: 0.5323645473 | F185: 8.396162935 | G185: 0.5176707606 | H185: 4.58101097 | I185: -0.02224056671 | J185: 6.692862092 | K185: 0.3768226256 | L185: 6.994468681 | M185: 0.3429824611 | N185: 7.665479951 | O185: 0.3866349072 | P185: 6.582439572
A186: 0.4382809997 | B186: 6.336066019 | C186: 0.5317527552 | D186: 5.505028672 | E186: 0.5561148127 | F186: 8.592782284 | G186: 0.5189011494 | H186: 4.617445257 | I186: -0.05430574218 | J186: 6.691864517 | K186: 0.3855904688 | L186: 7.098058453 | M186: 0.3337263813 | N186: 7.752815139 | O186: 0.3871515464 | P186: 6.656294335
A187: 0.4465220372 | B187: 6.358751811 | C187: 0.532152305 | D187: 5.547581645 | E187: 0.5715539555 | F187: 8.639797509 | G187: 0.5230471492 | H187: 4.657139134 | I187: -0.05168564307 | J187: 6.715495539 | K187: 0.3765353809 | L187: 7.136609635 | M187: 0.3356052935 | N187: 7.84425723 | O187: 0.3905329255 | P187: 6.6999475
A188: 0.4348597924 | B188: 6.384400982 | C188: 0.5314917862 | D188: 5.589028083 | E188: 0.5774661402 | F188: 8.74002107 | G188: 0.5213096241 | H188: 4.693510459 | I188: -0.04586555374 | J188: 6.740256413 | K188: 0.3719788045 | L188: 7.172519135 | M188: 0.3340173016 | N188: 7.893830557 | O188: 0.3893225565 | P188: 6.744795243
A189: 0.4357658823 | B189: 6.405577249 | C189: 0.5333567659 | D189: 5.627795359 | E189: 0.5856861671 | F189: 8.793240008 | G189: 0.5323000749 | H189: 4.731312006 | I189: -0.05310395112 | J189: 6.769130044 | K189: 0.3768336773 | L189: 7.20835688 | M189: 0.3357303143 | N189: 7.943141743 | O189: 0.3923669901 | P189: 6.78265047
A190: 0.4374372462 | B190: 6.458504579 | C190: 0.536198169 | D190: 5.665537235 | E190: 0.569994698 | F190: 8.89211952 | G190: 0.5360932648 | H190: 4.768805385 | I190: -0.05248617381 | J190: 6.868282136 | K190: 0.3771641602 | L190: 7.316366621 | M190: 0.3443145752 | N190: 7.990984234 | O190: 0.3926737057 | P190: 6.851514244
A191: 0.4654894272 | B191: 6.480083309 | C191: 0.5482643346 | D191: 5.702783674 | E191: 0.5772266289 | F191: 8.993319608 | G191: 0.5373891691 | H191: 4.804804714 | I191: -0.05283271273 | J191: 6.899556415 | K191: 0.3911863019 | L191: 7.354377893 | M191: 0.3695761412 | N191: 8.03648538 | O191: 0.4051856129 | P191: 6.895915856
A192: 0.4513540864 | B192: 6.495948112 | C192: 0.5554833512 | D192: 5.741847293 | E192: 0.5657562613 | F192: 9.041605849 | G192: 0.5382347604 | H192: 4.845202438 | I192: -0.05072440642 | J192: 6.934072955 | K192: 0.3784681112 | L192: 7.38917864 | M192: 0.3604001055 | N192: 8.081841278 | O192: 0.3998531814 | P192: 6.932813795
A193: 0.4446353515 | B193: 6.49652223 | C193: 0.5459304154 | D193: 5.783087154 | E193: 0.5713304877 | F193: 9.091227304 | G193: 0.546228836 | H193: 4.882743762 | I193: -0.03985843311 | J193: 6.996874518 | K193: 0.381491979 | L193: 7.466267693 | M193: 0.3693879892 | N193: 8.10881883 | O193: 0.4027352322 | P193: 6.975077356
A194: 0.460178107 | B194: 6.466665758 | C194: 0.5536080897 | D194: 5.818564748 | E194: 0.5889307459 | F194: 9.287483843 | G194: 0.5607215067 | H194: 4.921058248 | I194: -0.05022722296 | J194: 7.050591624 | K194: 0.3976067404 | L194: 7.536832692 | M194: 0.2996153136 | N194: 6.585554985 | O194: 0.4014904686 | P194: 6.809535985
A195: 0.4596255223 | B195: 6.452008343 | C195: 0.5563734969 | D195: 5.855168441 | E195: 0.6005605062 | F195: 9.340346449 | G195: 0.5384810269 | H195: 4.960845125 | I195: -0.0500282459 | J195: 7.084421358 | K195: 0.4013418406 | L195: 7.573847474 | M195: 0.2996452401 | N195: 6.700619432 | O195: 0.4008570553 | P195: 6.852465232
A196: 0.4644081493 | B196: 6.446880133 | C196: 0.5587721864 | D196: 5.895105549 | E196: 0.6128463646 | F196: 9.390151077 | G196: 0.5535204212 | H196: 4.999862592 | I196: -0.03889918638 | J196: 7.150450163 | K196: 0.3923243781 | L196: 7.652581141 | M196: 0.304047962 | N196: 6.780334543 | O196: 0.4067171822 | P196: 6.902195028
A197: 0.4643274347 | B197: 6.454296698 | C197: 0.5599320432 | D197: 5.933207063 | E197: 0.6366991997 | F197: 9.543059961 | G197: 0.5610957245 | H197: 5.034685279 | I197: -0.03823681114 | J197: 7.180901313 | K197: 0.3880362461 | L197: 7.696179582 | M197: 0.3091772646 | N197: 6.843234326 | O197: 0.4115758717 | P197: 6.955080603
A198: 0.4735845824 | B198: 6.495271348 | C198: 0.5605985721 | D198: 5.967606893 | E198: 0.6367081404 | F198: 9.593301022 | G198: 0.5666723847 | H198: 5.070855587 | I198: -0.0297099445 | J198: 7.237225861 | K198: 0.4088122646 | L198: 7.789465352 | M198: 0.3109762321 | N198: 6.919635906 | O198: =AVERAGE(A198,C198,E198,G198,I198,K198,M198) -> 0.4182346045 | P198: 7.010480281
A199: 0.4779347281 | B199: 6.522139505 | C199: 0.5670867364 | D199: 6.004323369 | E199: 0.6443015238 | F199: 9.64315748 | G199: 0.5695808927 | H199: 5.107275433 | I199: -0.03345222523 | J199: 7.300241148 | K199: 0.4071904719 | L199: 7.879427175 | M199: 0.2905594806 | N199: 7.009041038 | O199: 0.4176002297 | P199: 7.066515021
A200: 0.4842748741 | B200: 6.551395183 | C200: 0.5681364238 | D200: 6.04416956 | E200: 0.6415871282 | F200: 9.736283848 | G200: 0.5698227386 | H200: 5.148188119 | I200: -0.03689104691 | J200: 7.335453161 | K200: 0.3947072973 | L200: 7.928981407 | M200: 0.3167460362 | N200: 7.072953514 | O200: 0.4197690645 | P200: 7.11677497
... 482 more rows
